[Event "SixDays Budapest March GM A 2025"]
[Site "Budapest"]
[Date "2025.03.28"]
[Round "8.2"]
[White "Pap, Misa"]
[Black "Ostrovskiy, Aleksandr"]
[Result "1/2-1/2"]
[Annotator "TA"]
[ECO "B12"]
[WhiteElo "2457"]
[BlackElo "2394"]
[PlyCount "114"]
[EventDate "2025.03.23"]
[EventCountry "HUN"]
[SourceTitle "playchess.com"]
[Source "ChessBase"]
[SourceQuality "1"]
[TimeControl "5400+30"]

{[%evp 9,114,24,15,3,21,18,17,12,15,0,2,-2,0,0,0,0,10,0,-2,-9,0,-8,12,-8,0,-2,9,9,5,0,0,0,0,-16,0,0,0,0,0,0,0,0,16,0,0,0,0,0,0,0,0,-13,-15,-20,-11,-24,0,-16,0,0,0,0,11,6,31,27,61,61,141,52,89,0,0,0,85,0,0,0,0,0,0,0,0,0,0,0,0,0,0,0,0,0,0,0,0,0,0,0,0,0,0,-149,-118,-146,0,0,0]} 1. e4 {[%emt 0:02:10]} c6 {[%emt 0:06:02]} 2. d4 {[%emt 0:00:56]} d5 {[%emt 0:00:03]} 3. e5 {[%emt 0:00:07]} Bf5 {[%emt 0:00:40]} 4. h4 {[%emt 0:00:05]} h5 {[%emt 0:00:35]} 5. Bd3 {[%emt 0:00:06]} Bxd3 {[%emt 0:00:05]} 6. Qxd3 {[%emt 0:00:04][%cal Oe5e6] B12: Caro-Kann: Advance Variation.} Qa5+ $1 {[%emt 0:00:24][%mdl 4] is currently scoring better than 6...e6.} 7. Nd2 {[%emt 0:00:09][%cal Oe5e6]} e6 {[%emt 0:00:42]} 8. Ngf3 {[%emt 0:00:07]} Nh6 {[%emt 0:01:05]} 9. O-O {[%emt 0:00:10]} Nf5 {[%emt 0:00:24]} 10. Nb3 {[%emt 0:00:06]} Qa6 {[%emt 0:00:07]} 11. Qd1 {[%emt 0:00:05]} b6 {[%emt 0:00:39]} 12. Bg5 {[%emt 0:04:00]} c5 {[%emt 0:00:38]} 13. a4 {[%emt 0:05:34]} Nc6 {[%emt 0:07:55]} 14. c3 {[%emt 0:00:01]} Rc8 {[%emt 0:05:50]} 15. Re1 {[%emt 0:10:36]} Rc7 $146 {[%emt 0:15:24]} (15... Be7 16. Bxe7 Ncxe7 17. g3 O-O 18. Nc1 cxd4 19. cxd4 Nc6 20. Ra3 Qc4 21. Rc3 Qa6 {0-1 Swiercz,D (2640)-Firouzja,A (2786) Titled Tuesday intern op 13th Jun Late blitz 2023 (9)}) 16. Re2 {[%emt 0:10:23]} Rc8 {[%emt 0:22:00]} 17. g3 {[%emt 0:03:53]} Rc7 {[%emt 0:02:21]} 18. Kg2 {[%emt 0:00:05]} Rc8 {[%emt 0:00:07]} 19. a5 {[%emt 0:09:48]} Qb5 {[%emt 0:11:17]} 20. axb6 {[%emt 0:01:35]} axb6 {[%emt 0:00:46]} 21. Rd2 {[%emt 0:24:42]} Be7 {[%emt 0:08:12]} 22. Nc1 {[%emt 0:04:32][%cal Bb3c1,Bc1e2,Be2c3][%mdl 32]} Bxg5 {[%emt 0:07:06]} 23. Nxg5 {[%emt 0:00:08]} cxd4 {[%emt 0:00:18]} 24. cxd4 {[%emt 0:00:10]} g6 {[%emt 0:03:43]} 25. Ne2 {[%emt 0:00:27]} Kf8 {[%emt 0:02:03]} 26. Nc3 {[%emt 0:12:38]} Qb4 {[%emt 0:00:09]} 27. Ra4 {[%emt 0:00:12]} Qe7 {[%emt 0:00:10]} 28. Nb5 {[%emt 0:01:22]} Kg7 {[%emt 0:01:27]} 29. Rd3 {[%emt 0:00:48]} Qd7 {[%emt 0:01:16]} 30. Nc3 {[%emt 0:02:03]} Na5 {[%emt 0:00:49][%cal Bc6a5,Ba5c4,Bc4a3,Ba3c2][%mdl 32]} 31. Rb4 {[%emt 0:01:31]} Nc4 {[%emt 0:01:26]} 32. Na4 {[%emt 0:01:14]} Qe7 {[%emt 0:01:37]} 33. Rb5 {[%emt 0:01:37]} Qe8 {[%emt 0:00:37]} 34. Rb4 {[%emt 0:00:27]} Qe7 {[%emt 0:00:19]} 35. Qe1 {[%emt 0:00:22][%cal Ob2b3]} Qa7 {[%emt 0:01:11]} 36. b3 {[%emt 0:00:34]} Na3 {[%emt 0:00:27]} (36... b5 $6 37. Rxb5 Na3 (37... Nxd4 $2 38. Rxd4 Qxd4 39. bxc4 $18) 38. Ra5 $16) 37. Rxb6 {[%emt 0:00:35]} Nc2 {[%emt 0:00:27] Wards off Qb4} 38. Qd2 {[%emt 0:00:27]} Rc7 {[%emt 0:00:28]} (38... Rhe8 $14) 39. Rb5 {[%emt 0:02:02]} (39. Rxe6 $1 $16 Ncxd4 (39... fxe6 $2 40. Nxe6+ Kh7 41. Nxc7 $18) 40. Rb6) 39... Rhc8 $1 $14 {[%emt 0:00:27][%cal Oa7a6]} (39... Ncxd4 $2 40. Ra5 Qb8 41. Rxd4 $18) 40. Nf3 {[%emt 0:00:43]} (40. Rc5 $1 $16 Rxc5 41. dxc5) 40... Rc6 $11 {[%emt 0:00:41]} 41. Ra5 {[%emt 0:01:48]} Qc7 {[%emt 0:00:29] [#]} (41... Qe7 $11) 42. Rc5 {[%emt 0:00:52]} (42. b4 $1 $16 {Rc5 is the strong threat.} Rb8 43. Nc5 Rxb4 44. Ra8 Rxc5 45. dxc5 Qxc5 46. Rc3) 42... Ncxd4 $1 {[%emt 0:00:14]} 43. Nxd4 {[%emt 0:01:06]} (43. Rxc6 {seems wilder.} Nxc6 44. Rc3 Qb8 45. Nc5) 43... Nxd4 {[%emt 0:00:08]} 44. Rxd4 {[%emt 0:00:18]} Rxc5 {[%emt 0:00:02]} 45. Nxc5 {[%emt 0:00:04]} Qxc5 {[%emt 0:00:02][%mdl 4096] Endgame KQR-KQR} 46. b4 {[%emt 0:00:25]} Qb5 {[%emt 0:01:44]} 47. Qg5 {[%emt 0:00:54]} Rc4 {[%emt 0:00:39]} 48. Qf6+ {[%emt 0:00:26]} Kg8 {[%emt 0:00:08]} 49. Qd8+ {[%emt 0:00:08]} Kg7 {[%emt 0:00:08]} 50. Qf6+ {[%emt 0:00:41]} Kg8 {[%emt 0:00:04]} 51. Rf4 {[%emt 0:00:23]} Rxf4 {[%emt 0:00:38]} 52. Qxf4 {[%emt 0:00:05] KQ-KQ} Qb6 {[%emt 0:01:43]} 53. g4 {[%emt 0:00:55]} hxg4 {[%emt 0:00:19]} 54. Qxg4 {[%emt 0:00:11]} Kf8 {[%emt 0:00:19]} 55. Kg1 {[%emt 0:02:04]} (55. h5 $11 {keeps the balance.}) 55... d4 $17 {[%emt 0:00:23]} 56. b5 {[%emt 0:00:09] [#]} Qxb5 {[%emt 0:00:59]} (56... d3 $1 $17 {[%cal Ob6c5] White must now prevent ...Qc5!.} 57. h5 Qxb5 58. hxg6 Qxe5 59. gxf7 Kxf7) 57. Qxd4 $11 {[%emt 0:00:05]} Kg7 {[%emt 0:00:29] Weighted Error Value: White=0.13 (very precise) /Black=0.12 (very precise)   Mistake:       	White=4     	Black=3      Inaccurate:     	---       	Black=1      OK:         	White=15    	Black=20     Best:        	White=1     	Black=1      Strong:       	---       	Black=2} 1/2-1/2

[Event "SixDays Budapest March GM A 2025"]
[Site "Budapest"]
[Date "2025.03.28"]
[Round "8.3"]
[White "Uskov, Artem"]
[Black "Borgaonkar Akshay"]
[Result "1-0"]
[Annotator "TA"]
[ECO "B40"]
[WhiteElo "2461"]
[BlackElo "2418"]
[PlyCount "71"]
[EventDate "2025.03.23"]
[EventCountry "HUN"]
[SourceTitle "playchess.com"]
[Source "ChessBase"]
[SourceQuality "1"]
[TimeControl "5400+30"]

{[%evp 12,71,20,16,14,2,8,8,31,2,10,7,12,0,39,0,8,14,44,46,60,47,54,60,75,66,71,65,66,67,71,69,87,45,28,46,25,42,103,94,85,100,135,135,120,110,108,116,165,139,159,131,277,262,274,202,902,891,1012,988,949,941]} 1. e4 {[%emt 0:07:35]} c5 {[%emt 0:01:03]} 2. Nf3 {[%emt 0:00:10]} e6 {[%emt 0:00:08]} 3. d4 {[%emt 0:00:05]} cxd4 {[%emt 0:00:07]} 4. Nxd4 {[%emt 0:00:07]} Nf6 {[%emt 0:00:05]} 5. Nc3 {[%emt 0:00:06]} Nc6 {[%emt 0:00:04]} 6. a3 {[%emt 0:00:04]} d6 {[%emt 0:01:04]} 7. Be3 {[%emt 0:00:14]} Be7 {[%emt 0:00:17] B45: Sicilian Four Knights.} 8. Qe2 {[%emt 0:00:07]} e5 {[%emt 0:03:36]} 9. Nb3 {[%emt 0:00:23]} Ng4 {[%emt 0:01:34] The position is equal.} 10. O-O-O {[%emt 0:00:09]} Nxe3 {[%emt 0:06:21]} 11. fxe3 {[%emt 0:00:19]} (11. Qxe3 $2 Bg5 $19) 11... O-O {[%emt 0:02:59]} 12. h4 $146 {[%emt 0:00:05]} (12. Kb1 Rb8 13. Qe1 a6 14. Nd5 b5 15. h4 Be6 16. g3 a5 17. c3 Qd7 18. Be2 {0-1 Caruana,F (2804)-Zemlyanskii,I (2492) Titled Tuesday intern op 30th Jan Early blitz 2024 (10)}) 12... a6 {[%emt 0:12:43][%cal Oa8b8,Ba7a6,Ba6a5,Ba5a4][%mdl 32]} (12... Bxh4 $2 13. Qh5 $18) 13. Kb1 {[%emt 0:22:45]} b5 {[%emt 0:10:31][%cal Ob5b4]} (13... Bxh4 $2 14. Qh5 $18) 14. Nd5 $1 {[%emt 0:00:28]} Be6 {[%emt 0:02:04]} 15. g4 {[%emt 0:02:06]} Rb8 {[%emt 0:14:35]} 16. g5 {[%emt 0:00:39]} a5 {[%emt 0:02:01]} 17. Qd2 {[%emt 0:01:03]} a4 {[%emt 0:02:04]} 18. Nc1 {[%emt 0:01:16] Excellent horsemanship.} Qc8 {[%emt 0:15:03][%cal Ob5b4]} 19. Na2 {[%emt 0:07:46]} Bd8 {[%emt 0:01:07]} 20. Bd3 {[%emt 0:02:02]} Qb7 {[%emt 0:04:32]} 21. c3 {[%emt 0:01:53]} Ne7 {[%emt 0:06:40]} 22. Bc2 {[%emt 0:03:26]} Nxd5 {[%emt 0:04:11]} 23. exd5 {[%emt 0:00:10]} Bg4 {[%emt 0:00:03]} 24. Rdf1 {[%emt 0:00:50]} g6 {[%emt 0:02:23]} (24... f5 $14) 25. Qg2 $16 {[%emt 0:02:22]} Qd7 {[%emt 0:01:06]} 26. Nb4 {[%emt 0:01:11]} Bh5 {[%emt 0:00:57]} 27. Nc6 {[%emt 0:00:58]} Rb7 {[%emt 0:00:03]} 28. Bd1 {[%emt 0:01:14] White has more active pieces.} Bxd1 {[%emt 0:00:48]} 29. Rxd1 {[%emt 0:00:04]} f5 {[%emt 0:01:16]} (29... Bb6 $16) 30. gxf6 {[%emt 0:01:08]} Bxf6 {[%emt 0:00:26]} 31. h5 $36 {[%emt 0:01:11][%cal Bh4h5,Bh5h6][%mdl 2080] White is really pushing.} Qf5+ {[%emt 0:01:11] This costs Black the game.} (31... Qe8 $16 {might work better.} 32. Qg4 Qc8 33. Qe6+ Qxe6 34. dxe6 Be7 35. Nxe7+ Rxe7) 32. e4 $18 {[%emt 0:00:32]} Qg5 {[%emt 0:00:34]} 33. Qe2 {[%emt 0:02:09] [#] Rdg1 is the strong threat.} Rg7 $2 {[%emt 0:00:36]} (33... Qh6 34. Ka2 g5) 34. h6 {[%emt 0:00:47] White is clearly winning.} Rgf7 {[%emt 0:00:39]} 35. Rdg1 {[%emt 0:00:08]} Qf4 {[%emt 0:00:09]} 36. Rg4 {[%emt 0:00:06] Weighted Error Value: White=0.10 (very precise) /Black=0.37  Mistake:       	---       	Black=4      Inaccurate:     	White=3     	Black=3      OK:         	White=10    	Black=7      Best:        	White=3     	Black=1      Strong:       	White=1     	---} ({Stronger than} 36. Qxb5 Qxe4+ 37. Ka2 Bh4 $15) 1-0

[Event "SixDays Budapest March GM A 2025"]
[Site "Budapest"]
[Date "2025.03.28"]
[Round "8.4"]
[White "Jake Shanty"]
[Black "Aczel, Gergely"]
[Result "1/2-1/2"]
[Annotator "TA"]
[ECO "D37"]
[WhiteElo "2336"]
[BlackElo "2487"]
[PlyCount "144"]
[EventDate "2025.03.23"]
[EventCountry "HUN"]
[SourceTitle "playchess.com"]
[Source "ChessBase"]
[SourceQuality "1"]
[TimeControl "5400+30"]

{[%evp 9,144,30,30,25,46,40,69,67,59,50,58,52,68,47,62,14,16,11,14,17,22,12,26,22,28,21,35,32,39,10,43,1,4,-7,-8,-4,0,0,0,-7,0,-11,0,-23,0,-6,0,0,0,0,0,0,0,0,0,0,0,0,0,0,0,0,0,0,0,0,0,-13,0,0,0,0,0,0,0,0,0,-9,0,0,0,0,0,0,0,-6,-9,-11,-10,-10,-8,-50,-17,-26,-18,-30,-35,-29,-28,-39,-21,-27,-18,-27,-23,-27,-23,-53,-39,-39,-8,-122,-11,0,0,-178,-15,-15,-15,-16,-12,-15,-14,-50,-8,-8,0,0,0,0,0,0,0,0,0,-5,0]} 1. d4 {[%emt 0:00:06]} Nf6 {[%emt 0:00:05]} 2. c4 {[%emt 0:00:16]} e6 {[%emt 0:00:04]} 3. Nf3 {[%emt 0:00:16]} d5 {[%emt 0:00:20]} 4. Nc3 {[%emt 0:00:12]} Nbd7 {[%emt 0:00:06]} 5. Bf4 {[%emt 0:00:20]} dxc4 {[%emt 0:00:12]} 6. e3 $1 {[%emt 0:00:16] D37: Queen's Gambit Declined: 5 Bf4.} b5 {[%emt 0:00:06] 6...b5 is setting a new trend.} 7. Nxb5 {[%emt 0:01:04]} Bb4+ {[%emt 0:00:07]} 8. Nc3 $1 {[%emt 0:02:08] White is slightly better. White is more active.} Nd5 {[%emt 0:00:05]} 9. a3 {[%emt 0:01:22]} Nxc3 {[%emt 0:00:28]} 10. Qd2 {[%emt 0:00:37]} Bxa3 {[%emt 0:00:46]} 11. Qxc3 {[%emt 0:07:47]} Bd6 {[%emt 0:00:06]} 12. Bxd6 {[%emt 0:01:53]} (12. Bxc4 $14 Bxf4 13. exf4) 12... cxd6 $11 {[%emt 0:00:03]} 13. Bxc4 {[%emt 0:00:38]} O-O {[%emt 0:02:26]} 14. O-O {[%emt 0:01:48]} Bb7 {[%emt 0:00:11]} 15. Be2 {[%emt 0:05:09]} Qb6 {[%emt 0:00:18]} 16. Rfc1 {[%emt 0:06:48]} Rfc8 {[%emt 0:00:15] Wards off Qc7} 17. Qa3 {[%emt 0:01:50]} h6 $146 {[%emt 0:05:20]} ({Predecessor:} 17... Bxf3 18. Bxf3 Rab8 19. h4 Rxc1+ 20. Rxc1 Qxb2 21. Qxb2 Rxb2 22. Rc7 Nf8 23. Rxa7 d5 {½-½ So,W (2794)-Anand,V (2779) London Classic 8th 2016 (5)}) 18. Nd2 {[%emt 0:09:58] Black must now prevent Nc4.} Bd5 {[%emt 0:02:37]} 19. Bf1 {[%emt 0:14:06]} Nf6 {[%emt 0:00:51]} 20. h3 {[%emt 0:09:57]} a5 {[%emt 0:08:02]} 21. Nc4 {[%emt 0:08:46]} Bxc4 {[%emt 0:01:03]} 22. Rxc4 {[%emt 0:00:19]} Rxc4 {[%emt 0:08:55]} 23. Bxc4 {[%emt 0:00:07]} Rc8 {[%emt 0:01:04]} 24. Bf1 {[%emt 0:05:07]} g5 {[%emt 0:02:51]} 25. Qxa5 {[%emt 0:03:15]} Qxb2 {[%emt 0:03:06]} 26. Qa3 {[%emt 0:03:44]} Qxa3 {[%emt 0:13:55]} 27. Rxa3 {[%emt 0:00:08][%mdl 4096] Endgame KRB-KRN} Rc2 {[%emt 0:00:44]} 28. g4 {[%emt 0:03:12]} h5 {[%emt 0:00:36]} 29. gxh5 {[%emt 0:00:40]} Nxh5 {[%emt 0:00:29]} 30. Bg2 {[%emt 0:00:51]} d5 {[%emt 0:02:11]} 31. Bf3 {[%emt 0:00:37]} Nf6 {[%emt 0:05:57]} 32. Kg2 $1 {[%emt 0:01:02]} Kg7 {[%emt 0:00:01]} 33. Ra7 {[%emt 0:00:27]} Kg6 {[%emt 0:00:49]} 34. Ra8 {[%emt 0:00:38]} Rb2 {[%emt 0:03:12]} 35. Rd8 {[%emt 0:00:38]} Kg7 {[%emt 0:01:19]} 36. Rc8 {[%emt 0:00:38]} Ng8 {[%emt 0:00:31]} 37. Rc7 {[%emt 0:03:19]} Kg6 {[%emt 0:00:20]} 38. Rd7 {[%emt 0:02:52]} Rb6 {[%emt 0:10:28]} 39. Bd1 {[%emt 0:02:12]} f5 {[%emt 0:03:27]} 40. Rc7 {[%emt 0:01:10]} Ra6 {[%emt 0:02:23]} 41. Bc2 {[%emt 0:01:06]} Kf6 {[%emt 0:03:40]} 42. Bd1 {[%emt 0:01:06]} Kg6 {[%emt 0:01:02]} 43. Bc2 {[%emt 0:00:05]} Ra2 {[%emt 0:00:31]} 44. Bb3 {[%emt 0:00:26]} Rb2 {[%emt 0:10:37]} 45. Rb7 {[%emt 0:00:27][%cal Ob3d5]} Rd2 {[%emt 0:00:34]} 46. Rc7 {[%emt 0:00:12]} Nf6 {[%emt 0:00:30]} 47. Rc2 {[%emt 0:02:17]} Rd3 {[%emt 0:00:14]} 48. Rb2 {[%emt 0:00:57]} Ne4 {[%emt 0:01:00]} 49. Ba4 {[%emt 0:00:31]} Kf6 {[%emt 0:00:56]} 50. Bd7 {[%emt 0:01:16]} Ke7 {[%emt 0:01:23]} 51. Bc8 {[%emt 0:00:20]} Rc3 {[%emt 0:04:34]} 52. Ba6 {[%emt 0:00:26]} Kf6 {[%emt 0:00:17]} 53. Be2 $1 {[%emt 0:00:42]} f4 {[%emt 0:00:31]} 54. Kf3 {[%emt 0:00:25]} e5 {[%emt 0:02:40]} 55. Rb6+ {[%emt 0:00:45]} Kf5 {[%emt 0:00:29]} 56. Bb5 $1 {[%emt 0:00:25]} Nf6 {[%emt 0:01:21] Inhibits Bd7+.} (56... exd4 $2 {is the wrong capture.} 57. Bd7+ Ke5 58. Re6+ Kf5 59. Rxe4+ $18) 57. dxe5 {[%emt 0:00:16]} Kxe5 {[%emt 0:00:01]} 58. Rb7 {[%emt 0:00:58]} d4 {[%emt 0:02:32]} 59. Rg7 {[%emt 0:00:16]} Kf5 {[%emt 0:00:00][%cal Rd4e3]} 60. Ke2 {[%emt 0:00:41]} (60. Re7 $1 $11 {was the only way to keep the balance.}) 60... Rc2+ {[%emt 0:00:58]} (60... dxe3 $17 61. Bd3+ Ne4 62. fxe3 f3+ 63. Kxf3 Rxd3) 61. Kf3 {[%emt 0:00:22]} Rc3 $2 {[%emt 0:00:04] Dodges Bd3+} (61... Ne4 $11 62. Rf7+ Ke6) 62. Ke2 $19 {[%emt 0:00:07]} fxe3 $2 {[%emt 0:00:49]} (62... dxe3 $19 {Strongly threatening ...Rc2+.} 63. Bd3+ Ne4 64. fxe3 f3+ 65. Kxf3 Rxd3) 63. Bd3+ $11 {[%emt 0:00:24]} Kf4 {[%emt 0:00:15] [#]} 64. fxe3+ {[%emt 0:01:02]} dxe3 {[%emt 0:00:01]} 65. Rf7 {[%emt 0:00:16]} Rc6 {[%emt 0:00:06]} 66. Ra7 {[%emt 0:00:35]} Re6 {[%emt 0:01:05]} 67. Ra5 {[%emt 0:00:14] The position is equal.} g4 {[%emt 0:01:17]} 68. hxg4 {[%emt 0:00:21]} Nxg4 {[%emt 0:00:26]} 69. Rf5+ {[%emt 0:00:34]} Kg3 {[%emt 0:00:06]} 70. Rf3+ {[%emt 0:00:04]} Kh4 {[%emt 0:00:21]} 71. Bf5 {[%emt 0:00:06]} Rb6 {[%emt 0:00:54]} 72. Bxg4 {[%emt 0:00:21]} Kxg4 {[%emt 0:00:06] Weighted Error Value: White=0.11 (very precise) /Black=0.10 (very precise)   Missed win:     	---       	Black=1      Mistake:       	White=2     	Black=2      Inaccurate:     	White=4     	Black=5      OK:         	White=31    	Black=19     Best:        	White=2     	---        Strong:       	White=4     	---} 1/2-1/2

[Event "SixDays Budapest March GM A 2025"]
[Site "Budapest"]
[Date "2025.03.28"]
[Round "8.5"]
[White "Zia, Tahsin Tajwar"]
[Black "Berczes, David"]
[Result "1/2-1/2"]
[Annotator "RC"]
[ECO "D55"]
[WhiteElo "2327"]
[BlackElo "2408"]
[PlyCount "41"]
[EventDate "2025.03.23"]
[EventCountry "HUN"]
[SourceTitle "playchess.com"]
[Source "ChessBase"]
[SourceQuality "1"]
[TimeControl "5400+30"]

1. d4 {[%emt 0:00:14]} Nf6 {[%emt 0:23:08]} 2. c4 {[%emt 0:00:18]} e6 {[%emt 0:00:04]} 3. Nc3 {[%emt 0:00:13]} d5 {[%emt 0:01:09]} 4. Bg5 {[%emt 0:00:26]} Be7 {[%emt 0:01:49]} 5. Nf3 {[%emt 0:00:30]} O-O {[%emt 0:01:05]} 6. e3 {[%emt 0:00:06]} h6 {[%emt 0:00:17]} 7. Bxf6 {[%emt 0:00:15]} Bxf6 {[%emt 0:00:05]} 8. Rc1 {[%emt 0:00:08]} c6 {[%emt 0:06:53]} 9. h4 {[%emt 0:02:10]} Nd7 {[%emt 0:00:45]} 10. g4 {[%emt 0:00:12]} g6 {[%emt 0:01:00]} 11. g5 {[%emt 0:00:07]} hxg5 {[%emt 0:00:52]} 12. hxg5 {[%emt 0:00:34]} Bg7 {[%emt 0:00:25]} 13. cxd5 {[%emt 0:03:10]} exd5 {[%emt 0:01:34]} 14. Bd3 {[%emt 0:00:06]} Re8 {[%emt 0:00:49]} 15. Kd2 {[%emt 0:00:11]} c5 {[%emt 0:04:10]} 16. Rh4 {[%emt 0:31:00]} cxd4 {[%emt 0:03:12]} 17. exd4 {[%emt 0:00:05]} Nf8 {[%emt 0:19:56]} 18. Qb3 {[%emt 0:01:18]} Ne6 {[%emt 0:09:00]} 19. Qxd5 {[%emt 0:02:55]} Bd7 {[%emt 0:01:52]} 20. Bb5 {[%emt 0:35:31]} Bxb5 {[%emt 0:14:09]} 21. Qxd8 {[%emt 0:00:15]} 1/2-1/2

[Event "SixDays Budapest March GM A 2025"]
[Site "Budapest"]
[Date "2025.03.29"]
[Round "9.1"]
[White "Berczes, David"]
[Black "Moldagali, Beksultan"]
[Result "0-1"]
[Annotator "RC"]
[ECO "A06"]
[WhiteElo "2408"]
[BlackElo "2398"]
[PlyCount "88"]
[EventDate "2025.03.23"]
[EventCountry "HUN"]
[SourceTitle "playchess.com"]
[Source "ChessBase"]
[SourceQuality "1"]
[TimeControl "5400+30"]

1. Nf3 {[%emt 0:25:24]} d5 {[%emt 0:00:05]} 2. g3 {[%emt 0:00:31]} Bg4 {[%emt 0:00:35]} 3. Bg2 {[%emt 0:00:06]} c6 {[%emt 0:00:26]} 4. O-O {[%emt 0:00:21]} Nd7 {[%emt 0:00:23]} 5. h3 {[%emt 0:00:40]} Bh5 {[%emt 0:00:15]} 6. d3 {[%emt 0:01:22]} Ngf6 {[%emt 0:00:19]} 7. Qe1 {[%emt 0:03:31]} e5 {[%emt 0:00:42]} 8. e4 {[%emt 0:00:08]} Bd6 {[%emt 0:04:32]} 9. Nh4 {[%emt 0:11:48]} O-O {[%emt 0:00:30]} 10. Nf5 {[%emt 0:00:53]} Bc7 {[%emt 0:02:39]} 11. Nc3 {[%emt 0:00:26]} Bg6 {[%emt 0:07:15]} 12. Nh4 {[%emt 0:02:28]} Nc5 {[%emt 0:05:30]} 13. exd5 {[%emt 0:24:14]} Nxd5 {[%emt 0:00:09]} 14. Nxg6 {[%emt 0:00:14]} hxg6 {[%emt 0:00:13]} 15. Nxd5 {[%emt 0:00:39]} cxd5 {[%emt 0:00:02]} 16. b4 {[%emt 0:01:06]} Na4 {[%emt 0:09:07]} 17. c4 {[%emt 0:03:11]} e4 {[%emt 0:03:34]} 18. cxd5 {[%emt 0:14:02]} Qf6 {[%emt 0:05:01]} 19. Ba3 {[%emt 0:07:52]} Be5 {[%emt 0:05:58]} 20. dxe4 {[%emt 0:00:35]} Bxa1 {[%emt 0:01:12]} 21. Qxa1 {[%emt 0:00:04]} Rfe8 {[%emt 0:01:10]} 22. Qd1 {[%emt 0:01:10]} b5 {[%emt 0:02:56]} 23. Bc1 {[%emt 0:00:38]} Rac8 {[%emt 0:01:44]} 24. Be3 {[%emt 0:00:35]} Nc3 {[%emt 0:05:48]} 25. Qd3 {[%emt 0:00:07]} Rc4 {[%emt 0:00:07]} 26. Bxa7 {[%emt 0:00:53]} Nxa2 {[%emt 0:01:28]} 27. Qd2 {[%emt 0:00:31]} Nxb4 {[%emt 0:03:08]} 28. Rb1 {[%emt 0:00:28]} Ra8 {[%emt 0:00:53]} 29. e5 {[%emt 0:00:31]} Qxe5 {[%emt 0:16:59]} 30. d6 {[%emt 0:00:01]} Rd8 {[%emt 0:00:52]} 31. Re1 {[%emt 0:00:57]} Qc3 {[%emt 0:01:17]} 32. Qxc3 {[%emt 0:00:33]} Rxc3 {[%emt 0:00:01]} 33. Bb6 {[%emt 0:00:30]} Rxd6 {[%emt 0:00:15]} 34. Ba5 {[%emt 0:00:30]} Rb3 {[%emt 0:00:15]} 35. h4 {[%emt 0:00:29]} Nd3 {[%emt 0:01:59]} 36. Re8+ {[%emt 0:00:12]} Kh7 {[%emt 0:00:01]} 37. Re7 {[%emt 0:00:47]} Rf6 {[%emt 0:00:37]} 38. h5 {[%emt 0:00:24]} Rb1+ {[%emt 0:01:30]} 39. Kh2 {[%emt 0:00:04]} Nxf2 {[%emt 0:03:17]} 40. Bc3 {[%emt 0:00:55]} Rf5 {[%emt 0:00:24]} 41. hxg6+ {[%emt 0:00:04]} Kxg6 {[%emt 0:00:23]} 42. g4 {[%emt 0:00:24]} Nxg4+ {[%emt 0:00:18]} 43. Kg3 {[%emt 0:00:03]} Rb3 {[%emt 0:00:41]} 44. Be4 {[%emt 0:00:42]} Nh6 {[%emt 0:00:24]} 0-1